Cogmind - Beta 13 @@@ ROGUE MODE // 2024.04.05 @ 19:31:45 Player: KingStarKing Result: Destroyed by DAS Turret with DAS Cannon Performance ------------- Evolutions (0) 0 Regions Visited (3) 600 Robots Destroyed (24) 120 Value Destroyed (596) 596 Prototype IDs (0) 0 Alien Tech Used (0) 0 Bonus (300) 300 TOTAL SCORE: 1616 Bonus ------- Aligned with FarCom 300 Cogmind --------- Core Integrity 0/250 Matter 254/300 Energy 248/250 System Corruption 2% Temperature Cool (1) Movement Walking (470) Ox5 Location -10/Exiles Parts ------- > --- POWER (1) -------- Ion Engine (fused) > --- PROPULSION (2) --- Aluminum Leg > --- UTILITY (2) ------ High-capacity Storage Unit Improved Signal Interpreter > --- WEAPON (2) ------- Beam Cannon Axe > --- INVENTORY (20) --- Ion Engine Light Ion Engine Light Treads Aluminum Leg Large Storage Unit High-capacity Battery (250) High-capacity Battery (250) Large Matter Pod (150) Improved Sensor Array Experimental Sensor Array Improved Terrain Scanner Seismic Detector ECM Suite Light Armor Plating Trap Reconfigurator Medium Laser Light Cannon Light Cannon Grenade Launcher Rocket Launcher Peak State ------------ > --- POWER ------------ Light Nuclear Core > --- PROPULSION ------- Light Treads Light Treads > --- UTILITY ---------- High-capacity Storage Unit Improved Signal Interpreter > --- WEAPON ----------- Beam Cannon Axe > --- INVENTORY -------- Ion Engine Ion Engine Aluminum Leg Aluminum Leg Large Storage Unit High-capacity Battery High-capacity Battery Large Matter Pod Improved Sensor Array Improved Terrain Scanner Seismic Detector ECM Suite Light Armor Plating Medium Laser Assault Rifle Light Cannon Light Cannon Grenade Launcher Grenade Launcher Grenade Launcher [Rating: 15] Favorites ----------- Power Ion Engine Engine Ion Engine Power Core Light Nuclear Core Propulsion Light Treads Treads Light Treads Leg Aluminum Leg Utility High-capacity Storage Unit Device Seismic Detector Storage High-capacity Storage Unit Processor Improved Signal Interpreter Weapon Beam Cannon Energy Gun Medium Laser Energy Cannon Beam Cannon Ballistic Gun Assault Rifle Ballistic Cannon Light Cannon Launcher Grenade Launcher Slashing Weapon Axe Build | -11 -10 -10 -10 ------- Run | Yrd Mat Min Exi Slots Evolved . | . . . . Power . | . . . . Propulsion . | . . . . Utility . | . . . . Weapon . | . . . . Parts Attached 32 | 8 13 11 . Power 4 | 1 1 2 . Engine 3 | 1 1 1 . Core 1 | . . 1 . Reactor . | . . . . Propulsion 10 | 2 2 6 . Treads 6 | 2 2 2 . Leg 4 | . . 4 . Wheel . | . . . . Hover . | . . . . Flight . | . . . . Utility 5 | 2 2 1 . Device 1 | 1 . . . Storage 2 | 1 1 . . Processor 2 | . 1 1 . Hackware . | . . . . Protection . | . . . . Artifact . | . . . . Weapon 13 | 3 8 2 . Energy Gun 2 | 2 . . . Energy Cannon 3 | . 2 1 . Ballistic Gun 1 | 1 . . . Ballistic Cannon 2 | . 2 . . Launcher 4 | . 4 . . Special Weapon . | . . . . Impact Weapon . | . . . . Slashing Weapon 1 | . . 1 . Piercing Weapon . | . . . . Special Melee Weapon . | . . . . Unidentified Prototypes . | . . . . Parts Lost 1 | . . . 1 Power . | . . . . Propulsion 1 | . . . 1 Utility . | . . . . Weapon . | . . . . Highest Loss Streak 1 | . . . 1 To Critical Strikes . | . . . . Average Slot Usage (%) 99 | . 99 100 100 Engine 11 | . 14 5 14 Core 2 | . . 8 . Treads 18 | . 28 16 . Leg 9 | . . 11 28 Device 5 | . 10 . . Storage 14 | . 14 14 14 Processor 8 | . 3 14 14 Energy Cannon 10 | . 8 12 14 Ballistic Gun 2 | . 4 . . Ballistic Cannon 2 | . 3 4 . Launcher 6 | . 11 1 . Slashing Weapon 5 | . . 9 14 Naked Turns . | . . . . Heaviest Build 51 | 15 51 51 51 Greatest Support 40 | 40 40 40 20 Greatest Overweight (x) 5 | . 1 2 5 Average Overweight (x) 1 | . . 1 2 Largest Inventory Capacity 20 | 8 20 20 20 Average Capacity 19 | 7 19 20 20 Most Carried 20 | 8 20 20 20 Average Carried 18 | 5 18 19 19 Final Capacity 20 | 8 20 20 20 Final Carried 20 | 7 20 20 20 Class Distribution -------------------- 100% | Mutant Dominant Class ---------------- Mutant | -10/Materials Mutant | -10/Mines Mutant | -10/Exiles Resources | -11 -10 -10 -10 ----------- Run | Yrd Mat Min Exi Matter Collected 883 | 286 286 311 . Remotely . | . . . . Salvage Created 713 | 125 301 287 . Parts 40 | 10 21 9 . Haulers Intercepted 1 | . 1 . . Recyclers Shooed 2 | . 1 1 . Parts Field Recycled . | . . . . Retrieved Matter . | . . . . Parts Self-Destructed . | . . . . Prevented . | . . . . Kills | -11 -10 -10 -10 ------- Run | Yrd Mat Min Exi Combat Hostiles Destroyed 17 | . 10 7 . Melee 5 | . . 5 . Guns 3 | . 3 . . Cannons 3 | . 1 2 . AOE 6 | . 6 . . Classes Destroyed 8 | 2 6 . . Worker 1 | . 1 . . Tunneler 2 | 2 . . . Hauler 1 | . 1 . . Recycler 1 | 1 . . . Mechanic 1 | . 1 . . Operator 1 | . 1 . . Swarmer 4 | . 3 1 . Grunt 13 | . 7 6 . Best Kill Streak 4 | 1 4 3 . Combat Bots Only 3 | . 3 3 . Max Kills in Single Turn 2 | 1 2 1 . Gunslinging . | . . . . Exploded 2 | . 2 . . Melee 1 | . . 1 . Uniques/NPCs Destroyed . | . . . . Combat | -11 -10 -10 -10 -------- Run | Yrd Mat Min Exi Hostile Shots Fired 88 | . 38 34 16 Missed 26 | . 13 9 4 Damage Taken 1012 | . 293 313 406 Core 253 | . 44 62 147 Absorbed by Shields . | . . . . Core Remaining (%) 100 | 100 . . . Volleys Fired 30 | 4 22 4 . Largest 2 | 2 2 2 . Hottest 95 | 70 80 95 . Shots Fired 49 | 6 34 8 1 Gun 18 | 6 12 . . Cannon 20 | . 11 8 1 Launcher 11 | . 11 . . Special . | . . . . Kinetic 23 | 2 18 3 . Thermal 15 | 4 5 5 1 Explosive 11 | . 11 . . Electromagnetic . | . . . . Robot Hit Streak 10 | 5 10 4 . Robot Miss Streak 2 | . 2 1 2 Penetration Max . | . . . . Secondary Targets . | . . . . Shots Hit Robots 36 | 5 16 15 . Core Hits 34 | 4 21 9 . Critical Kills . | . . . . Critical Parts Destroyed . | . . . . Critical Strikes . | . . . . Melee Attacks 16 | . . 16 . Impact . | . . . . Slashing 16 | . . 16 . Piercing . | . . . . Sneak Attacks . | . . . . Combat Hostiles . | . . . . Follow-up Attacks . | . . . . Damage Inflicted 1366 | 58 885 423 . Guns 130 | 58 72 . . Cannons 204 | . 140 64 . Explosions 673 | . 673 . . Melee 356 | . . 356 . Ramming 3 | . . 3 . Kinetic 217 | 10 177 30 . Thermal 117 | 48 35 34 . Explosive 673 | . 673 . . Electromagnetic . | . . . . Impact . | . . . . Slashing 356 | . . 356 . Piercing . | . . . . Highest Corruption 2 | . 2 2 2 Average Corruption 2 | . 2 2 2 Corruption Purged . | . . . . Corruption Blocked . | . . . . Effects 26 | . 1 11 14 Message Errors 3 | . 1 2 . Matter Fused 9 | . . 4 5 Heat Flow Errors 1 | . . . 1 Energy Discharges 3 | . . 2 1 Parts Fused 1 | . . . 1 Data Loss (minor) 4 | . . 2 2 Data Loss (major) 3 | . . . 3 Misfires 2 | . . 1 1 Overload Shots . | . . . . Overflow Damage 16 | . 7 9 . Projectiles . | . . . . Explosions 7 | . 7 . . Melee 9 | . . 9 . Knockbacks 2 | . . 2 . Impact . | . . . . Kinetic 1 | . . 1 . Secondary 1 | . . 1 . Self-Inflicted Damage 19 | . 19 . . Shots 1 | . 1 . . Rammed 3 | . 1 2 . Targets Rammed 3 | . 1 2 . Kicked . | . . . . Crushed . | . . . . Highest Temperature 129 | 9 90 129 119 Average Temperature 36 | 6 29 53 45 Received Heat Transfer 273 | . 105 168 . Siege Activations . | . . . . Robots Corrupted . | . . . . Combat Hostiles . | . . . . Parts Fried . | . . . . Impact Corruptions . | . . . . Robots Melted . | . . . . Combat Hostiles . | . . . . Parts Melted 1 | . 1 . . Heat Transferred 272 | 124 74 74 . Parts Sabotaged . | . . . . Parts Stolen . | . . . . Parts Stripped . | . . . . Power Chain Reactions . | . . . . Alert | -11 -10 -10 -10 ------- Run | Yrd Mat Min Exi Peak Influence 229 | 15 229 100 . Initial 9 | . 9 . . Average 50 | 6 65 30 . Maximum Alert Level 1 | . 1 . . Low Security (%) 94 | 100 91 100 . Level 1 5 | . 8 . . Level 2 . | . . . . Level 3 . | . . . . Level 4 . | . . . . Level 5 . | . . . . High Security . | . . . . Max Security . | . . . . Squads Dispatched 3 | . 2 1 . Investigation 2 | . 1 1 . Extermination . | . . . . Reinforcement 1 | . 1 . . Assault . | . . . . Garrison . | . . . . Intercept . | . . . . Searches Triggered . | . . . . Construction Impeded . | . . . . Haulers Reinforced . | . . . . Active Scanning Responses . | . . . . Cargo Convoy Interrupts . | . . . . Stealth | -11 -10 -10 -10 --------- Run | Yrd Mat Min Exi Distress Signals 1 | . 1 . . Communications Jammed . | . . . . Distress Signals . | . . . . Times Spotted 38 | . 22 9 7 Peak Tracking Total 4 | . 3 3 4 Tactical Retreats 1 | . . . 1 Traps | -11 -10 -10 -10 ------- Run | Yrd Mat Min Exi Traps Triggered 2 | . 2 . . Indirectly . | . . . . Trap Hack Attempts . | . . . . Triggered . | . . . . Disarmed . | . . . . Reprogrammed . | . . . . Reused . | . . . . Traps Extracted . | . . . . Installed . | . . . . Triggered . | . . . . Machines | -11 -10 -10 -10 ---------- Run | Yrd Mat Min Exi Machines Disabled 1 | . 1 . . Max in Single Turn 1 | . 1 . . Machines Repaired . | . . . . Machines Dismantled . | . . . . Machines Sabotaged . | . . . . Overloaded Fab Kills . | . . . . Hacking | -11 -10 -10 -10 --------- Run | Yrd Mat Min Exi Machines Accessed 6 | . 2 1 3 Terminals 1 | . 1 . . Fabricators . | . . . . Repair Stations . | . . . . Recycling Units 1 | . 1 . . Scanalyzers . | . . . . Garrison Access . | . . . . Total Hacks 46 | . 3 1 42 Successful 44 | . 1 1 42 Failed 2 | . 2 . . Catastrophic . | . . . . Database Lockouts . | . . . . Manual 4 | . . . 4 Terminals 2 | . 2 . . Fabricators . | . . . . Repair Stations . | . . . . Recycling Units 1 | . 1 . . Scanalyzers . | . . . . Garrison Access . | . . . . Terminal Hacks 43 | . . 1 42 Record 42 | . . . 42 Open Door 1 | . . 1 . Fabricator Hacks . | . . . . Repair Station Hacks . | . . . . Recycling Unit Hacks 1 | . 1 . . Report Inventory 1 | . 1 . . Scanalyzer . | . . . . Garrison Access Hacks . | . . . . Unauthorized Hacks . | . . . . Terminals . | . . . . Fabricators . | . . . . Repair Stations . | . . . . Recycling Units . | . . . . Scanalyzers . | . . . . Garrison Access . | . . . . Data Cores Recovered . | . . . . Used . | . . . . Hacking Detections . | . . . . Full Trace Events . | . . . . Feedback Events . | . . . . Feedback Blocked . | . . . . Robot Schematics Acquired . | . . . . Robots Built . | . . . . Authchips . | . . . . Time . | . . . . Total Robot Build Rating . | . . . . Part Schematics Acquired . | . . . . Parts Built . | . . . . Authchips . | . . . . Time . | . . . . Total Part Build Rating . | . . . . Parts Repaired . | . . . . Time . | . . . . Parts Recycled . | . . . . Recycled Matter . | . . . . Retrieved Matter . | . . . . Retrieved Components . | . . . . Parts Scanalyzed . | . . . . Part Schematics Acquired . | . . . . Parts Damaged . | . . . . Bothacking | -11 -10 -10 -10 ------------ Run | Yrd Mat Min Exi Used RIF Installer . | . . . . Robots Hacked . | . . . . Non-combat . | . . . . Combat . | . . . . Robot Hacks Applied . | . . . . Relay Couplers Released . | . . . . Fabnet Peak Effective % . | . . . . Robots Rewired . | . . . . Allies Hacked . | . . . . Hacks Repelled . | . . . . Allies | -11 -10 -10 -10 -------- Run | Yrd Mat Min Exi Total Allies . | . . . . Largest Group . | . . . . Highest-Rated Group . | . . . . Highest-Rated Ally . | . . . . Total Orders . | . . . . Ally Attacks . | . . . . Total Damage . | . . . . Kills . | . . . . Allies Corrupted . | . . . . Allies Melted . | . . . . Intel | -11 -10 -10 -10 ------- Run | Yrd Mat Min Exi Robot Analysis Total . | . . . . Derelict Logs Recovered 2 | . . 2 . Drone Launches . | . . . . Drone Recoveries . | . . . . Exploration | -11 -10 -10 -10 ------------- Run | Yrd Mat Min Exi Turns Passed 4231 | 188 2050 1039 954 Spaces Moved 1654 | 100 805 382 367 Core 6 | 6 . . . Treads 1127 | 94 805 228 . Legs 521 | . . 154 367 Wheels . | . . . . Hover . | . . . . Flight . | . . . . Fastest Speed 50 | 50 160 240 260 Average Speed 239 | 153 236 248 260 Slowest Speed 470 | 160 240 260 470 Overloaded Moves . | . . . . Propulsion Burnouts . | . . . . Robots Hopped . | . . . . Cave-ins Triggered . | . . . . Exploration Rate (%) 62 | 5 92 81 70 Regions Visited 3 Branch Regions 2 Pre-discovered Areas 2 | . . 1 1 Known Exits Taken 2 | . 1 1 . Unknown Exits Taken 1 | 1 . . . Scrap Searched 1 | . . 1 . Spaces Dug 22 | . 22 . . Terrain Destroyed 43 | . 43 . . Melee . | . . . . Projectile . | . . . . AOE 43 | . 43 . . Terrain Rammed . | . . . . Walls Destroyed . | . . . . Machines Disabled . | . . . . Actions | -11 -10 -10 -10 --------- Run | Yrd Mat Min Exi Total 1859 | 129 922 439 369 Wait 26 | . 21 5 . Move 1651 | 99 804 381 367 Hop . | . . . . Pick Up 64 | 16 37 10 1 Fast Attach . | . . . . Attach 9 | 7 1 1 . Detach . | . . . . Swap 23 | 1 12 10 . Drop 37 | 2 24 10 1 Fire 30 | 4 22 4 . Melee 16 | . . 16 . Ram . | . . . . Kick . | . . . . Crush 3 | . 1 2 . Escape Stasis . | . . . . Rewire . | . . . . Trap . | . . . . Miscellaneous . | . . . . Route ------- -11/Scrapyard -10/Materials (discovered 4 exits: *Mat x3 / *Min) -10/Mines (discovered 2 exits: *Mat / *Exi) -10/Exiles History --------- Turn | Location | Event 15 | -11/Scrapyard | Discovered new exit (range 16) 189 | -11/Scrapyard | Entered Materials 307 | -10/Materials | Build established: Mutant 477 | -10/Materials | Discovered new exit (range 9) 884 | -10/Materials | Discovered new exit (range 10) 1349 | -10/Materials | Discovered new exit (range 5) 1721 | -10/Materials | Discovered new exit (range 4) 1783 | -10/Materials | Identified exit to Materials 2237 | -10/Materials | Identified exit to Mines 2239 | -10/Materials | Entered Mines 2243 | -10/Mines | Met a Derelict shopkeep closing up shop 2367 | -10/Mines | Discovered exit to Materials (range 12) 2376 | -10/Mines | Found a hidden stash of uninstalled traps 2400 | -10/Mines | Learned location of Zion (-7) 2417 | -10/Mines | Learned Materials terminal intel 2840 | -10/Mines | Received a Rocket Launcher from a helpful Derelict 3017 | -10/Mines | Found a damaged Exp. Sensor Array with a note attached 3022 | -10/Mines | Found Prototype Device 3057 | -10/Mines | Deemed a non-threat by the Exiles lab entrance 3060 | -10/Mines | Discovered new exit (range 5) 3068 | -10/Mines | Identified exit to Exiles 3278 | -10/Mines | Entered Exiles 3338 | -10/Exiles | Met 8R-AWN 3388 | -10/Exiles | Met EX-HEX 3558 | -10/Exiles | Visited The Gauntlet 3650 | -10/Exiles | Met EX-DEC 3863 | -10/Exiles | Met EX-BIN 3895 | -10/Exiles | Aligned with FarCom system 3897 | -10/Exiles | Given EX-Vault access code 4009 | -10/Exiles | Opened EX-Vault 4075 | -10/Exiles | Found Prototype Device 4116 | -10/Exiles | Exiles lab attacked by MAIN.C 4223 | -10/Exiles | Attacked by the Exiles 4229 | -10/Exiles | Core integrity fell below 50% 4231 | -10/Exiles | Core integrity fell below 20% 4232 | -10/Exiles | Destroyed by DAS Turret with DAS Cannon Last Messages --------------- System corrupted: FCS attempts to trigger Beam Cannon. System corrupted: Beam Cannon misfires. EXILES: Additional hostile detected within perimeter. Penetrated by HV Slug. HV Slug penetrates Machine. Penetrated by HV Slug. HV Slug penetrates Machine. Machine disabled. Penetrated by HV Slug. HV Slug penetrates Machine. Penetrated by HV Slug. HV Slug penetrates Machine. Knocked back. HV Slug penetrates Machine. Penetrated by HV Slug. HV Slug penetrates Wall. Aluminum Leg destroyed. Knocked back. HV Slug penetrates 5L-KAT. HV Slug penetrates Wall. Map ----- +----------------------------------------------------+ | ??????????????????????????????????#""X" #? | | ??????????????????????????????????#" #? | | ??????????????????????????????????#" ## #? | | ??????????????????????????????????#""""""## #? | | ??????????????????????????????????##"###### #? | | ?????????????????????????????????? "?????# #? | | ?????????????????????????????????""" ?????# #? | | ?????????????????????????????????""" ????## ## | | ???????????????????????????????????" ????#" | | ???????????????????????????????????##????#" | | ?????????????????????????????????????????#" | | ?????????????????????????????????????????#" | | ???????????????????????????#######???????#" | | ??????????????????????????# """#???????#" | | ??????????????????????????#"" """#???????## | | ??????????????????????????#"" #????????# | | ??????????????????????????#"" #????????#" | | ??????????????????????????#"" "#????????#" | | ??????????????????????????# ""#????????#" " | | ??????????????????????????#"" ""#???????##" ## | | ???????????? ??????????### ###??????##"" #? | | ???????????" #####????### ###?######"" #? | | ???????????" """#####X# #"###""""""" ## | | ???????????" % """""" " "" # | | ????????????# z "" """ " | | ?????????????# @ " " | | ?????????????### | | ???????????????##; z g | | ????????????????### z % | | ??????????????????## % | | ???????????????????## % | | ????????????????????# "" """""" | | ???????????????????##" ######""" | | ???????????????????#"" ""##????#####" | | ???????????????????#" " """##?????????## | | ???????????????????" " t """##???????????# | | ??????????????????#""" ""#???????????## | | ??????????????????#"" ########??####" | | ???????????????????""" ## ####""" | | ???????????????????"" """" | | ???????????????????#" | | ???????????????????#" "" | | ????????????????????# | | ????????????????????#" " "" | | ????????????????????#"""" ""## ##"" | | ????????????????????#"" ""#### #### | | ????????????????????#" """"##??# #??? | | ????????????????????#""" """#??## #### | | ????????????????????## ""##??#! "!# | | ?????????????????????#"" """##???#" !# | +----------------------------------------------------+ Best States ------------- Heat Dissipation 25 Energy Generation 14 Energy Capacity 250 Matter Stores 300 Matter Capacity 300 Sight Range 16 Terrain Scan Density 10 Evasion (%) 40 Recoil Reduction 2 Item Schematics ----------------- None Robot Schematics ------------------ None Fabricated ------------ Nothing Alien Tech Used ----------------- None Achievements -------------- Loot Pinata Challenges ------------ None Game ------ Seed SniperFactoryRecalibrator Manual? 0 Play Time 00:42:33 Cumulative 4.4 hours Start 2024.04.03 @ 19:52:53 End 2024.04.05 @ 19:31:45 Sessions 3 Manual Loads 0 Difficulty Rogue Special Mode None Game No. 6 Rogue 6 Adventurer 0 Explorer 0 Win Type - Total 0 Types 0/0/0/0/0/0/0/0/0 Lore% 10 Gallery% 6 Achievement% 7 Wizard Run 0 Options --------- Layout 0 ASCII 0 Keyboard 0 Movement Numpad Keybinds 0 Fullscreen 1 Font 18/SmallcapsGlow Map View 38x25 Zoom Use 93% Tactical HUD 0 Map Filters NONE Filters NONE Steam 1 RUN: 75bf957a-1fbd-4189-b026-a98e0a40c3b0